[Event "*** Titled Tuesday Blitz"]
[Site "Chess.com"]
[Date "2020.05.05"]
[Round "3"]
[White "KaterynaLagno"]
[Black "CakeinSpace2002"]
[Result "1-0"]
[WhiteElo "2636"]
[BlackElo "2221"]
[TimeControl "180+1"]
[EndTime "10:29:59 PDT"]
[Termination "KaterynaLagno won on time"]

1. e4 {[%clk 0:03:00.9]} 1... e5 {[%clk 0:02:57.4]} 2. Nf3 {[%clk 0:03:00.3]}
2... Nc6 {[%clk 0:02:57.1]} 3. Bb5 {[%clk 0:03:00.9]} 3... a6 {[%clk 0:02:57.1]}
4. Ba4 {[%clk 0:03:01.6]} 4... Nf6 {[%clk 0:02:57]} 5. O-O {[%clk 0:03:02.2]}
5... Be7 {[%clk 0:02:51]} 6. d3 {[%clk 0:03:02.4]} 6... b5 {[%clk 0:02:45]} 7.
Bb3 {[%clk 0:03:01.9]} 7... d6 {[%clk 0:02:44.7]} 8. a4 {[%clk 0:02:59.2]} 8...
Bb7 {[%clk 0:02:36.9]} 9. c3 {[%clk 0:02:54.7]} 9... O-O {[%clk 0:02:36.1]} 10.
Re1 {[%clk 0:02:54.5]} 10... Na5 {[%clk 0:02:15.1]} 11. Bc2 {[%clk 0:02:54.1]}
11... c5 {[%clk 0:02:14.3]} 12. Nbd2 {[%clk 0:02:54.1]} 12... Rc8 {[%clk
0:02:07]} 13. Nf1 {[%clk 0:02:51]} 13... c4 {[%clk 0:02:06.3]} 14. Ng3 {[%clk
0:02:38.1]} 14... cxd3 {[%clk 0:02:05.1]} 15. Bxd3 {[%clk 0:02:39]} 15... Nc4
{[%clk 0:02:02.5]} 16. axb5 {[%clk 0:02:38.5]} 16... axb5 {[%clk 0:02:02.1]} 17.
b3 {[%clk 0:02:31.7]} 17... Nb6 {[%clk 0:02:00.3]} 18. Ra7 {[%clk 0:02:31.5]}
18... Bc6 {[%clk 0:01:48.6]} 19. Nf5 {[%clk 0:02:28.7]} 19... Rc7 {[%clk
0:01:34.4]} 20. Ra6 {[%clk 0:02:25]} 20... Rb7 {[%clk 0:01:17.8]} 21. Bg5 {[%clk
0:02:19.7]} 21... Re8 {[%clk 0:01:08.6]} 22. Qd2 {[%clk 0:01:35.1]} 22... Bd7
{[%clk 0:00:54.3]} 23. Nxe7+ {[%clk 0:01:31.5]} 23... Qxe7 {[%clk 0:00:50.6]}
24. Qe3 {[%clk 0:01:31.8]} 24... Reb8 {[%clk 0:00:47.1]} 25. Rea1 {[%clk
0:01:31.2]} 25... h6 {[%clk 0:00:35.4]} 26. Bh4 {[%clk 0:01:28.4]} 26... g5
{[%clk 0:00:33]} 27. Bg3 {[%clk 0:01:18.7]} 27... Nh5 {[%clk 0:00:25.2]} 28. Ra7
{[%clk 0:01:13.7]} 28... Nc8 {[%clk 0:00:12.2]} 29. Rxb7 {[%clk 0:01:12.5]}
29... Rxb7 {[%clk 0:00:13.1]} 30. Ra8 {[%clk 0:01:12.5]} 30... Kg7 {[%clk
0:00:11.8]} 31. h4 {[%clk 0:01:07.9]} 31... Nf4 {[%clk 0:00:10.4]} 32. hxg5
{[%clk 0:01:04.6]} 32... hxg5 {[%clk 0:00:11.3]} 33. Ne1 {[%clk 0:00:55.5]}
33... Nb6 {[%clk 0:00:10.2]} 34. Ra6 {[%clk 0:00:55.6]} 34... Nc8 {[%clk
0:00:10]} 35. Qf3 {[%clk 0:00:56.1]} 35... Be6 {[%clk 0:00:08.9]} 36. b4 {[%clk
0:00:51.4]} 36... Rc7 {[%clk 0:00:07.8]} 37. Bf1 {[%clk 0:00:50.8]} 37... Rb7
{[%clk 0:00:06.2]} 38. Ra8 {[%clk 0:00:48]} 38... Nb6 {[%clk 0:00:04.9]} 39. Ra5
{[%clk 0:00:47.7]} 39... Na4 {[%clk 0:00:04]} 40. Rxb5 {[%clk 0:00:46.4]} 40...
Rxb5 {[%clk 0:00:04.4]} 41. Bxb5 {[%clk 0:00:47.2]} 41... Nb6 {[%clk 0:00:04.2]}
42. Bxf4 {[%clk 0:00:45.8]} 42... exf4 {[%clk 0:00:04]} 43. Qe2 {[%clk 0:00:40]}
43... Qc7 {[%clk 0:00:03.6]} 44. Qd2 {[%clk 0:00:39.8]} 44... f6 {[%clk
0:00:03.1]} 45. Qd4 {[%clk 0:00:39.6]} 45... Na4 {[%clk 0:00:02.6]} 46. Bxa4
{[%clk 0:00:39]} 1-0

[Event "*** Titled Tuesday Blitz"]
[Site "Chess.com"]
[Date "2020.05.05"]
[Round "3"]
[White "boasovietica"]
[Black "algatar2020"]
[Result "1-0"]
[WhiteElo "2469"]
[BlackElo "1843"]
[TimeControl "180+1"]
[EndTime "10:29:59 PDT"]
[Termination "boasovietica won on time"]

1. e4 {[%clk 0:03:00.9]} 1... g6 {[%clk 0:02:58.5]} 2. d4 {[%clk 0:03:00.3]}
2... d6 {[%clk 0:02:58.2]} 3. Ne2 {[%clk 0:02:57]} 3... Bg7 {[%clk 0:02:57.9]}
4. Be3 {[%clk 0:02:55.8]} 4... Nf6 {[%clk 0:02:57]} 5. f3 {[%clk 0:02:54.7]}
5... c6 {[%clk 0:02:56.9]} 6. c4 {[%clk 0:02:54.6]} 6... Qc7 {[%clk 0:02:56.9]}
7. Nbc3 {[%clk 0:02:54.6]} 7... e5 {[%clk 0:02:56.5]} 8. Qd2 {[%clk 0:02:53]}
8... a6 {[%clk 0:02:52.6]} 9. d5 {[%clk 0:02:52.9]} 9... c5 {[%clk 0:02:51.7]}
10. O-O-O {[%clk 0:02:46.8]} 10... Bd7 {[%clk 0:02:49.1]} 11. g4 {[%clk
0:02:46.3]} 11... b5 {[%clk 0:02:48.4]} 12. Ng3 {[%clk 0:02:41.6]} 12... bxc4
{[%clk 0:02:42.6]} 13. Bxc4 {[%clk 0:02:38]} 13... Bb5 {[%clk 0:02:36]} 14. Nxb5
{[%clk 0:02:31]} 14... axb5 {[%clk 0:02:34.9]} 15. Bxb5+ {[%clk 0:02:31.4]}
15... Nbd7 {[%clk 0:02:35]} 16. Kb1 {[%clk 0:02:24.8]} 16... O-O {[%clk
0:02:34.2]} 17. Bxd7 {[%clk 0:02:24.4]} 17... Nxd7 {[%clk 0:02:29.8]} 18. h4
{[%clk 0:02:23.6]} 18... Rfb8 {[%clk 0:02:27.6]} 19. h5 {[%clk 0:02:23.6]} 19...
Nb6 {[%clk 0:02:26.3]} 20. hxg6 {[%clk 0:02:23]} 20... fxg6 {[%clk 0:02:25]} 21.
Qh2 {[%clk 0:02:02.5]} 21... Bh8 {[%clk 0:02:21.4]} 22. Nf5 {[%clk 0:01:59.7]}
22... gxf5 {[%clk 0:02:05.2]} 23. gxf5 {[%clk 0:01:58.9]} 23... Nc4 {[%clk
0:02:05.2]} 24. Rdg1+ {[%clk 0:01:57.8]} 24... Kf8 {[%clk 0:02:03.3]} 25. Bc1
{[%clk 0:01:54.2]} 25... Ra7 {[%clk 0:01:18.5]} 26. Qg2 {[%clk 0:01:13.9]} 26...
Qf7 {[%clk 0:01:03]} 27. Rh3 {[%clk 0:01:02.9]} 27... Rab7 {[%clk 0:01:00.1]}
28. b3 {[%clk 0:01:00]} 28... Na5 {[%clk 0:00:50.3]} 29. Rg3 {[%clk 0:00:56.4]}
29... Nxb3 {[%clk 0:00:47.3]} 30. axb3 {[%clk 0:00:55.8]} 30... Rxb3+ {[%clk
0:00:46.5]} 31. Kc2 {[%clk 0:00:55.9]} 31... R3b7 {[%clk 0:00:20]} 32. Qh3
{[%clk 0:00:44.5]} 32... Bf6 {[%clk 0:00:18.1]} 33. Qh6+ {[%clk 0:00:34.1]}
33... Ke7 {[%clk 0:00:17]} 34. Rg7 {[%clk 0:00:32.2]} 34... Bxg7 {[%clk
0:00:15.5]} 35. Rxg7 {[%clk 0:00:31.6]} 35... Ke8 {[%clk 0:00:12.2]} 36. Rxf7
{[%clk 0:00:29.7]} 36... Kxf7 {[%clk 0:00:12.1]} 37. Qxd6 {[%clk 0:00:27.9]}
37... c4 {[%clk 0:00:10.8]} 38. Qxe5 {[%clk 0:00:25.7]} 38... Ra8 {[%clk
0:00:08.8]} 39. Qe6+ {[%clk 0:00:24.9]} 39... Kf8 {[%clk 0:00:08.7]} 40. Bh6+
{[%clk 0:00:23.2]} 1-0

[Event "*** Titled Tuesday Blitz"]
[Site "Chess.com"]
[Date "2020.05.05"]
[Round "3"]
[White "IMTominho"]
[Black "Undisputed92"]
[Result "1-0"]
[WhiteElo "2789"]
[BlackElo "2578"]
[TimeControl "180+1"]
[EndTime "10:30:00 PDT"]
[Termination "IMTominho won by resignation"]

1. d4 {[%clk 0:03:00.9]} 1... Nf6 {[%clk 0:02:59.5]} 2. c4 {[%clk 0:03:00.9]}
2... e6 {[%clk 0:02:59.5]} 3. Nf3 {[%clk 0:03:00.9]} 3... Bb4+ {[%clk 0:02:59]}
4. Nbd2 {[%clk 0:02:57.5]} 4... O-O {[%clk 0:02:57.8]} 5. a3 {[%clk 0:02:54.7]}
5... Be7 {[%clk 0:02:57.6]} 6. g3 {[%clk 0:02:54.1]} 6... d6 {[%clk 0:02:47.2]}
7. Bg2 {[%clk 0:02:51.8]} 7... Nbd7 {[%clk 0:02:43.3]} 8. O-O {[%clk 0:02:49.9]}
8... e5 {[%clk 0:02:39.6]} 9. Qc2 {[%clk 0:02:49.7]} 9... a5 {[%clk 0:02:38.1]}
10. b3 {[%clk 0:02:49.6]} 10... Re8 {[%clk 0:02:37.2]} 11. Bb2 {[%clk
0:02:49.4]} 11... Bf8 {[%clk 0:02:36.9]} 12. e4 {[%clk 0:02:32.4]} 12... c6
{[%clk 0:02:27.5]} 13. Rad1 {[%clk 0:02:31.6]} 13... Qc7 {[%clk 0:02:26.9]} 14.
Rfe1 {[%clk 0:02:27.9]} 14... g6 {[%clk 0:02:23.3]} 15. h3 {[%clk 0:02:25.4]}
15... b6 {[%clk 0:02:14.2]} 16. Nf1 {[%clk 0:01:54.3]} 16... Bb7 {[%clk
0:02:11.5]} 17. g4 {[%clk 0:01:52.5]} 17... Bg7 {[%clk 0:01:59.3]} 18. Ng3
{[%clk 0:01:51.4]} 18... Re7 {[%clk 0:01:58.3]} 19. g5 {[%clk 0:01:35]} 19...
Ne8 {[%clk 0:01:57.1]} 20. h4 {[%clk 0:01:34.2]} 20... c5 {[%clk 0:01:22.5]} 21.
d5 {[%clk 0:01:24]} 21... a4 {[%clk 0:01:20]} 22. Bf1 {[%clk 0:00:57.3]} 22...
axb3 {[%clk 0:01:18.3]} 23. Qxb3 {[%clk 0:00:58.2]} 23... Bc8 {[%clk 0:01:18.8]}
24. Nh2 {[%clk 0:00:54.2]} 24... Nf8 {[%clk 0:01:13.6]} 25. Rb1 {[%clk 0:00:53]}
25... f5 {[%clk 0:01:08]} 26. exf5 {[%clk 0:00:48.2]} 26... gxf5 {[%clk
0:01:08.5]} 27. Bc1 {[%clk 0:00:43.9]} 27... f4 {[%clk 0:01:06.8]} 28. Nh5
{[%clk 0:00:39.2]} 28... Ng6 {[%clk 0:01:07]} 29. Qxb6 {[%clk 0:00:35.4]} 29...
Nxh4 {[%clk 0:01:01.9]} 30. Qxc7 {[%clk 0:00:34.4]} 30... Rxc7 {[%clk 0:00:53]}
31. Rb6 {[%clk 0:00:29.8]} 31... Ng6 {[%clk 0:00:51.7]} 32. Nxf4 {[%clk
0:00:24.7]} 32... Nxf4 {[%clk 0:00:50.1]} 33. Bxf4 {[%clk 0:00:24.6]} 33... Rxa3
{[%clk 0:00:50]} 34. Be3 {[%clk 0:00:22.5]} 34... Ra8 {[%clk 0:00:47]} 35. Bd3
{[%clk 0:00:21.7]} 35... Rb7 {[%clk 0:00:41.7]} 36. Rxb7 {[%clk 0:00:17.6]}
36... Bxb7 {[%clk 0:00:42.6]} 37. Nf3 {[%clk 0:00:17.4]} 37... Bc8 {[%clk
0:00:37.9]} 38. Kg2 {[%clk 0:00:17.2]} 38... Bf8 {[%clk 0:00:37.8]} 39. Nh4
{[%clk 0:00:14.3]} 39... Ra7 {[%clk 0:00:36.7]} 40. Rh1 {[%clk 0:00:13.4]} 40...
Ng7 {[%clk 0:00:35.2]} 41. g6 {[%clk 0:00:11.8]} 41... h5 {[%clk 0:00:30.9]} 42.
Nf3 {[%clk 0:00:11.7]} 42... Bg4 {[%clk 0:00:30.1]} 43. Ng5 {[%clk 0:00:11.4]}
43... Be7 {[%clk 0:00:29.1]} 44. Nf7 {[%clk 0:00:09.5]} 44... Ra2 {[%clk
0:00:25.9]} 45. Nh6+ {[%clk 0:00:09.4]} 45... Kf8 {[%clk 0:00:23.6]} 46. Nxg4
{[%clk 0:00:10.3]} 1-0

[Event "*** Titled Tuesday Blitz"]
[Site "Chess.com"]
[Date "2020.05.05"]
[Round "3"]
[White "RAU4ever"]
[Black "Belka1989"]
[Result "1-0"]
[WhiteElo "2345"]
[BlackElo "2139"]
[TimeControl "180+1"]
[EndTime "10:30:00 PDT"]
[Termination "RAU4ever won by checkmate"]

1. e4 {[%clk 0:03:00.9]} 1... e5 {[%clk 0:02:58.6]} 2. Nf3 {[%clk 0:03:00.5]}
2... Nc6 {[%clk 0:02:58.7]} 3. Bc4 {[%clk 0:03:00.9]} 3... Nf6 {[%clk
0:02:58.6]} 4. d3 {[%clk 0:03:01]} 4... Bc5 {[%clk 0:02:57.9]} 5. c3 {[%clk
0:03:00.7]} 5... d6 {[%clk 0:02:57.7]} 6. Bb3 {[%clk 0:02:59.5]} 6... Bg4 {[%clk
0:02:57.3]} 7. h3 {[%clk 0:02:56.8]} 7... Bxf3 {[%clk 0:02:56.9]} 8. Qxf3 {[%clk
0:02:57.7]} 8... Qd7 {[%clk 0:02:56.9]} 9. Bg5 {[%clk 0:02:46]} 9... Qe7 {[%clk
0:02:53.9]} 10. Nd2 {[%clk 0:02:24.3]} 10... h6 {[%clk 0:02:52.7]} 11. Be3
{[%clk 0:02:19.4]} 11... Bxe3 {[%clk 0:02:50.5]} 12. fxe3 {[%clk 0:02:18.2]}
12... O-O-O {[%clk 0:02:50.5]} 13. O-O-O {[%clk 0:02:06.3]} 13... Na5 {[%clk
0:02:48.2]} 14. Bc2 {[%clk 0:02:03.4]} 14... Qe6 {[%clk 0:02:44.7]} 15. Kb1
{[%clk 0:02:02.7]} 15... d5 {[%clk 0:02:40.5]} 16. exd5 {[%clk 0:01:55.7]} 16...
Qxd5 {[%clk 0:02:41.4]} 17. e4 {[%clk 0:01:53]} 17... Qb5 {[%clk 0:02:24.2]} 18.
Nb3 {[%clk 0:01:36.9]} 18... Nxb3 {[%clk 0:02:23.4]} 19. Bxb3 {[%clk 0:01:37.8]}
19... Rhf8 {[%clk 0:02:20.4]} 20. Rhf1 {[%clk 0:01:33.9]} 20... a5 {[%clk
0:02:13]} 21. Bc4 {[%clk 0:01:32.7]} 21... Qb6 {[%clk 0:02:11.8]} 22. Qf5+
{[%clk 0:01:31.7]} 22... Nd7 {[%clk 0:02:10.7]} 23. Bxf7 {[%clk 0:01:24.4]}
23... g6 {[%clk 0:02:02.3]} 24. Qe6 {[%clk 0:01:13.7]} 24... Qxe6 {[%clk
0:01:48.1]} 25. Bxe6 {[%clk 0:01:14.6]} 25... Rxf1 {[%clk 0:01:47.1]} 26. Rxf1
{[%clk 0:01:15.5]} 26... Re8 {[%clk 0:01:45.7]} 27. Bxd7+ {[%clk 0:01:10.6]}
27... Kxd7 {[%clk 0:01:46.6]} 28. Rf7+ {[%clk 0:01:05.9]} 28... Kc8 {[%clk
0:01:44.7]} 29. Rf6 {[%clk 0:01:03.8]} 29... Rg8 {[%clk 0:01:43]} 30. g4 {[%clk
0:00:58.1]} 30... Kd7 {[%clk 0:01:42.1]} 31. Rf7+ {[%clk 0:00:55.5]} 31... Kd6
{[%clk 0:01:40.9]} 32. Kc2 {[%clk 0:00:55.2]} 32... h5 {[%clk 0:01:39.4]} 33. g5
{[%clk 0:00:54.3]} 33... b5 {[%clk 0:01:34.4]} 34. Rf6+ {[%clk 0:00:54.4]} 34...
Kd7 {[%clk 0:01:32.8]} 35. Kd2 {[%clk 0:00:48.4]} 35... b4 {[%clk 0:01:29.7]}
36. Kc2 {[%clk 0:00:42.1]} 36... bxc3 {[%clk 0:01:28.8]} 37. bxc3 {[%clk
0:00:43]} 37... Rg7 {[%clk 0:01:27.7]} 38. Ra6 {[%clk 0:00:43]} 38... Rf7 {[%clk
0:01:26.6]} 39. Rxg6 {[%clk 0:00:42.9]} 39... Rf2+ {[%clk 0:01:26.4]} 40. Kb3
{[%clk 0:00:43.1]} 40... a4+ {[%clk 0:01:26.6]} 41. Kxa4 {[%clk 0:00:42]} 41...
Rxa2+ {[%clk 0:01:26.5]} 42. Kb4 {[%clk 0:00:42.4]} 42... Rh2 {[%clk 0:01:26.6]}
43. Rf6 {[%clk 0:00:38.6]} 43... Rxh3 {[%clk 0:01:25.6]} 44. Kc4 {[%clk
0:00:38.3]} 44... Rg3 {[%clk 0:01:23]} 45. g6 {[%clk 0:00:35.5]} 45... h4 {[%clk
0:01:23.1]} 46. Rf7+ {[%clk 0:00:34.2]} 46... Kc6 {[%clk 0:01:23.2]} 47. Rh7
{[%clk 0:00:30.8]} 47... Rxg6 {[%clk 0:01:22.6]} 48. Rxh4 {[%clk 0:00:31.5]}
48... Rd6 {[%clk 0:01:22.1]} 49. Rh7 {[%clk 0:00:30.1]} 49... Kb6 {[%clk
0:01:20.5]} 50. d4 {[%clk 0:00:30.2]} 50... exd4 {[%clk 0:01:20.6]} 51. cxd4
{[%clk 0:00:31.1]} 51... Rg6 {[%clk 0:01:20.3]} 52. e5 {[%clk 0:00:28]} 52...
Kc6 {[%clk 0:01:20.1]} 53. Rf7 {[%clk 0:00:27.1]} 53... Rg4 {[%clk 0:01:16.3]}
54. Rf6+ {[%clk 0:00:26]} 54... Kd7 {[%clk 0:01:14.7]} 55. Kd5 {[%clk
0:00:26.9]} 55... c6+ {[%clk 0:01:07.3]} 56. Kc5 {[%clk 0:00:27.1]} 56... Re4
{[%clk 0:00:59.5]} 57. Rd6+ {[%clk 0:00:27.1]} 57... Kc7 {[%clk 0:00:56.8]} 58.
Rxc6+ {[%clk 0:00:27.4]} 58... Kd7 {[%clk 0:00:57.4]} 59. Rd6+ {[%clk
0:00:28.3]} 59... Kc7 {[%clk 0:00:57.1]} 60. Kd5 {[%clk 0:00:29.2]} 60... Re1
{[%clk 0:00:55.8]} 61. Ra6 {[%clk 0:00:29.1]} 61... Kd7 {[%clk 0:00:53.6]} 62.
Ra7+ {[%clk 0:00:29.5]} 62... Kd8 {[%clk 0:00:53.5]} 63. Kd6 {[%clk 0:00:28.9]}
63... Ke8 {[%clk 0:00:53.8]} 64. e6 {[%clk 0:00:29.2]} 64... Kf8 {[%clk
0:00:50.7]} 65. Ra8+ {[%clk 0:00:29.6]} 65... Kg7 {[%clk 0:00:49.5]} 66. e7
{[%clk 0:00:30.2]} 66... Kf7 {[%clk 0:00:49.6]} 67. Rf8+ {[%clk 0:00:30]} 67...
Kg7 {[%clk 0:00:48.9]} 68. e8=Q {[%clk 0:00:30.9]} 68... Rxe8 {[%clk 0:00:48.9]}
69. Rxe8 {[%clk 0:00:31.8]} 69... Kf7 {[%clk 0:00:49.8]} 70. Re2 {[%clk
0:00:31.8]} 70... Kg7 {[%clk 0:00:50.7]} 71. Ke7 {[%clk 0:00:32.1]} 71... Kg6
{[%clk 0:00:50.8]} 72. Re5 {[%clk 0:00:32]} 72... Kg7 {[%clk 0:00:51.7]} 73. d5
{[%clk 0:00:30.9]} 73... Kg6 {[%clk 0:00:52.6]} 74. d6 {[%clk 0:00:31.4]} 74...
Kg7 {[%clk 0:00:53.5]} 75. d7 {[%clk 0:00:32]} 75... Kg6 {[%clk 0:00:54.4]} 76.
d8=Q {[%clk 0:00:32.5]} 76... Kg7 {[%clk 0:00:55.3]} 77. Qd4 {[%clk 0:00:32.5]}
77... Kg6 {[%clk 0:00:56.2]} 78. Qf4 {[%clk 0:00:32.7]} 78... Kg7 {[%clk
0:00:57.1]} 79. Rg5+ {[%clk 0:00:33.1]} 79... Kh7 {[%clk 0:00:57.3]} 80. Qh4#
{[%clk 0:00:34]} 1-0

[Event "*** Titled Tuesday Blitz"]
[Site "Chess.com"]
[Date "2020.05.05"]
[Round "3"]
[White "MFBerna"]
[Black "silverback96"]
[Result "0-1"]
[WhiteElo "2315"]
[BlackElo "2119"]
[TimeControl "180+1"]
[EndTime "10:30:00 PDT"]
[Termination "silverback96 won on time"]

1. d4 {[%clk 0:02:58.7]} 1... Nf6 {[%clk 0:02:47.5]} 2. Nf3 {[%clk 0:02:58]}
2... c5 {[%clk 0:02:48]} 3. e3 {[%clk 0:02:56.9]} 3... g6 {[%clk 0:02:47.4]} 4.
c4 {[%clk 0:02:55.9]} 4... Bg7 {[%clk 0:02:48.3]} 5. Nc3 {[%clk 0:02:55.9]} 5...
O-O {[%clk 0:02:48.5]} 6. Be2 {[%clk 0:02:55.8]} 6... cxd4 {[%clk 0:02:48.3]} 7.
exd4 {[%clk 0:02:55.3]} 7... d5 {[%clk 0:02:48.8]} 8. O-O {[%clk 0:02:52.8]}
8... Nc6 {[%clk 0:02:49.1]} 9. Be3 {[%clk 0:02:47.2]} 9... dxc4 {[%clk
0:02:42.5]} 10. Bxc4 {[%clk 0:02:46.9]} 10... Na5 {[%clk 0:02:43.1]} 11. Be2
{[%clk 0:02:46.8]} 11... Be6 {[%clk 0:02:43.6]} 12. Ne5 {[%clk 0:02:44.7]} 12...
Nd5 {[%clk 0:02:37.1]} 13. Nxd5 {[%clk 0:02:34]} 13... Bxd5 {[%clk 0:02:36.4]}
14. Bf3 {[%clk 0:02:29.5]} 14... Nc6 {[%clk 0:02:33.2]} 15. Nxc6 {[%clk
0:02:22.5]} 15... bxc6 {[%clk 0:02:34.1]} 16. Rc1 {[%clk 0:02:15.7]} 16... Rc8
{[%clk 0:02:19.8]} 17. Rc5 {[%clk 0:01:59.5]} 17... Qb6 {[%clk 0:02:12.9]} 18.
b3 {[%clk 0:01:49.8]} 18... Rfd8 {[%clk 0:02:11.1]} 19. Bxd5 {[%clk 0:01:12]}
19... cxd5 {[%clk 0:02:10.8]} 20. Qc2 {[%clk 0:00:54.4]} 20... Rxc5 {[%clk
0:02:10.6]} 21. dxc5 {[%clk 0:00:55.3]} 21... Qc6 {[%clk 0:02:09.7]} 22. Rd1
{[%clk 0:00:51.8]} 22... e5 {[%clk 0:02:05.6]} 23. b4 {[%clk 0:00:49.9]} 23...
d4 {[%clk 0:02:05.4]} 24. Qc4 {[%clk 0:00:48.6]} 24... a6 {[%clk 0:02:01.1]} 25.
h3 {[%clk 0:00:41.2]} 25... Rd5 {[%clk 0:01:45]} 26. Kh2 {[%clk 0:00:26.9]}
26... h5 {[%clk 0:01:44.5]} 27. Bc1 {[%clk 0:00:09.9]} 27... e4 {[%clk
0:01:41.5]} 28. Bb2 {[%clk 0:00:09.2]} 28... Qd7 {[%clk 0:01:28.7]} 29. Kg1
{[%clk 0:00:07.9]} 29... Rg5 {[%clk 0:01:15.6]} 30. Kf1 {[%clk 0:00:06.5]} 30...
e3 {[%clk 0:00:55.4]} 31. fxe3 {[%clk 0:00:06]} 31... Qf5+ {[%clk 0:00:49.9]}
32. Kg1 {[%clk 0:00:06.4]} 32... Qxh3 {[%clk 0:00:49]} 33. Qe2 {[%clk 0:00:07]}
33... dxe3 {[%clk 0:00:38.6]} 34. Bxg7 {[%clk 0:00:06.5]} 34... Kxg7 {[%clk
0:00:39.4]} 35. Rd3 {[%clk 0:00:03.5]} 35... Rg3 {[%clk 0:00:30.2]} 36. c6
{[%clk 0:00:03.5]} 36... Qc8 {[%clk 0:00:25.6]} 37. Rc3 {[%clk 0:00:03.7]} 37...
Qf5 {[%clk 0:00:20.6]} 38. a4 {[%clk 0:00:03.6]} 38... Qb1+ {[%clk 0:00:20.6]}
39. Qf1 {[%clk 0:00:03.1]} 39... Qxb4 {[%clk 0:00:21.2]} 40. Qa1 {[%clk
0:00:02.1]} 40... Kh7 {[%clk 0:00:15.2]} 41. c7 {[%clk 0:00:02.3]} 41... Qd4
{[%clk 0:00:14.8]} 42. c8=Q {[%clk 0:00:02.5]} 42... e2+ {[%clk 0:00:15]} 43.
Kh2 {[%clk 0:00:01.8]} 43... Qh4+ {[%clk 0:00:14.9]} 44. Kg1 {[%clk 0:00:01.1]}
44... Qd4+ {[%clk 0:00:15.3]} 0-1

[Event "*** Titled Tuesday Blitz"]
[Site "Chess.com"]
[Date "2020.05.05"]
[Round "3"]
[White "1random"]
[Black "vwnv7"]
[Result "1-0"]
[WhiteElo "2530"]
[BlackElo "2307"]
[TimeControl "180+1"]
[EndTime "10:30:01 PDT"]
[Termination "1random won by resignation"]

1. e4 {[%clk 0:03:00.6]} 1... c5 {[%clk 0:02:59.5]} 2. Nf3 {[%clk 0:02:58]} 2...
Nc6 {[%clk 0:02:59.5]} 3. d4 {[%clk 0:02:58.5]} 3... cxd4 {[%clk 0:02:59.3]} 4.
Nxd4 {[%clk 0:02:59.4]} 4... Nf6 {[%clk 0:02:59.5]} 5. Nc3 {[%clk 0:02:53.5]}
5... d6 {[%clk 0:02:59.6]} 6. Bg5 {[%clk 0:02:53.4]} 6... e6 {[%clk 0:02:57.4]}
7. Qd2 {[%clk 0:02:52]} 7... a6 {[%clk 0:02:57.5]} 8. O-O-O {[%clk 0:02:52.5]}
8... Bd7 {[%clk 0:02:57.6]} 9. f4 {[%clk 0:02:52.8]} 9... Be7 {[%clk 0:02:57.2]}
10. Nf3 {[%clk 0:02:52.5]} 10... b5 {[%clk 0:02:57.3]} 11. a3 {[%clk 0:02:53.2]}
11... h6 {[%clk 0:02:41.5]} 12. Bh4 {[%clk 0:02:44.4]} 12... g5 {[%clk
0:02:14.8]} 13. fxg5 {[%clk 0:02:40.1]} 13... Ng4 {[%clk 0:02:13.5]} 14. Qf4
{[%clk 0:01:42.2]} 14... Nge5 {[%clk 0:01:13.8]} 15. gxh6 {[%clk 0:01:19.1]}
15... Bxh4 {[%clk 0:00:53]} 16. Nxh4 {[%clk 0:01:13.5]} 16... Qe7 {[%clk
0:00:53]} 17. Nf3 {[%clk 0:00:59.8]} 17... O-O-O {[%clk 0:00:47.9]} 18. a4
{[%clk 0:00:46.5]} 18... bxa4 {[%clk 0:00:23]} 19. Bxa6+ {[%clk 0:00:45.9]}
19... Kb8 {[%clk 0:00:22.5]} 20. Qe3 {[%clk 0:00:42.3]} 20... Bc8 {[%clk
0:00:17]} 21. Qb6+ {[%clk 0:00:30.6]} 21... Bb7 {[%clk 0:00:16.7]} 22. Nxe5
{[%clk 0:00:24]} 22... Nxe5 {[%clk 0:00:15.5]} 23. Nb5 {[%clk 0:00:17.9]} 23...
Nc6 {[%clk 0:00:12]} 24. Rd3 {[%clk 0:00:11.4]} 24... Rxh6 {[%clk 0:00:11.2]}
25. Rc3 {[%clk 0:00:07.3]} 25... Rc8 {[%clk 0:00:08.9]} 26. Rxc6 {[%clk
0:00:06.3]} 26... Rxc6 {[%clk 0:00:08.8]} 27. Qa7+ {[%clk 0:00:06.7]} 27... Kc8
{[%clk 0:00:09]} 28. Qa8+ {[%clk 0:00:06.9]} 28... Kd7 {[%clk 0:00:08.3]} 29.
Qxb7+ {[%clk 0:00:07.4]} 29... Ke8 {[%clk 0:00:08.5]} 30. Qxc6+ {[%clk
0:00:06.8]} 30... Kf8 {[%clk 0:00:08.8]} 31. Qc8+ {[%clk 0:00:06.4]} 31... Kg7
{[%clk 0:00:08.4]} 32. Qc3+ {[%clk 0:00:06.1]} 32... e5 {[%clk 0:00:07.6]} 33.
Nc7 {[%clk 0:00:05.5]} 33... Rg6 {[%clk 0:00:06.7]} 34. Nd5 {[%clk 0:00:05.5]}
34... Qg5+ {[%clk 0:00:06.7]} 35. Kb1 {[%clk 0:00:05.8]} 35... Qxg2 {[%clk
0:00:06.3]} 36. Rf1 {[%clk 0:00:05.2]} 36... Qxe4 {[%clk 0:00:05.9]} 37. Bd3
{[%clk 0:00:03.6]} 37... Qxd5 {[%clk 0:00:05.2]} 38. Bxg6 {[%clk 0:00:04.3]}
38... fxg6 {[%clk 0:00:05.4]} 39. Qf3 {[%clk 0:00:04.3]} 39... Qe6 {[%clk
0:00:04.8]} 40. Qf8+ {[%clk 0:00:05]} 40... Kh7 {[%clk 0:00:05.1]} 41. Rf7+
{[%clk 0:00:05.9]} 41... Qxf7 {[%clk 0:00:05]} 42. Qxf7+ {[%clk 0:00:06.8]} 1-0